bitfinex/quotes_SOLUSD_20250417
["timestamp","ask_amount","ask_price","bid_price","bid_amount"]
[1744850978878,82.8,131.19,131.18,13.79306177]
[1744850979478,82.8,131.21,131.18,13.79306177]
[1744850982687,82.8,131.21,131.19,13.79306177]
[1744850983280,82.8,131.21,131.19,8.83106656]
[1744850984065,99.25096948,131.24,131.19,8.83106656]
[1744850984279,82.8,131.23,131.19,8.83106656]
[1744850984987,82.8,131.23,131.19,16.45339945]
[1744850985790,82.8,131.23,131.2,8.83106656]
[1744850987184,82.8,131.23,131.2,16.45290822]
[1744850987985,82.8,131.23,131.21,8.83106656]
[1744850988874,82.8,131.23,131.2,16.45290822]
[1744850989181,90.42048254,131.23,131.18,1.5221]
[1744850989389,90.42048254,131.23,131.19,8.83106656]
[1744850991281,99.2515491,131.23,131.19,8.83106656]
[1744850992198,99.2515491,131.23,131.19,16.45356072]
[1744850992410,82.8,131.23,131.2,8.83106656]
[1744850992577,82.8,131.23,131.2,16.45276439]
[1744850993197,99.25135123,131.23,131.18,1.5221]
[1744850993384,99.25135123,131.23,131.18,17.97617195]
[1744850994107,99.25135123,131.23,131.18,10.35316656]
[1744850994885,99.25135123,131.23,131.18,17.97627755]
[1744850995088,82.8,131.23,131.21,8.83106656]
[1744850995394,82.8,131.23,131.21,13.79320165]
[1744850997796,82.8,131.23,131.21,21.41447513]
[1744850998105,82.8,131.26,131.22,13.79320165]
[1744850998399,82.8,131.26,131.21,13.68547348]
[1744850998400,82.8,131.26,131.23,13.79320165]
[1744850998708,90.4186848,131.26,131.22,13.79320165]
[1744850998886,13.79320165,131.25,131.21,13.79320165]
[1744850999093,13.79320165,131.25,131.2,13.79320165]
[1744851000298,13.79320165,131.22,131.15,22.5676]
[1744851000487,96.59320165,131.21,131.16,13.79320165]
[1744851000688,82.8,131.21,131.17,13.79320165]
[1744851000884,82.8,131.23,131.19,13.79320165]
[1744851001096,82.8,131.23,131.2,13.79320165]
[1744851001302,82.8,131.23,131.21,13.79320165]
[1744851001615,82.8,131.23,131.19,13.79320165]
[1744851002005,90.42021435,131.23,131.19,13.79320165]
[1744851002203,82.8,131.23,131.2,13.79320165]
[1744851004718,82.8,131.23,131.2,21.41508311]
[1744851005307,82.8,131.23,131.21,13.79320165]
[1744851005695,82.8,131.25,131.21,13.79320165]
[1744851005896,82.8,131.25,131.22,13.79320165]
[1744851006810,82.8,131.25,131.23,13.79320165]
[1744851007308,82.8,131.25,131.2,9.27728146]
[1744851007309,82.8,131.25,131.22,13.79320165]
[1744851007503,96.59320165,131.25,131.21,13.79320165]
[1744851007712,104.21236742,131.25,131.21,13.79320165]
[1744851008095,90.41916577,131.25,131.21,13.79320165]
[1744851008406,90.41916577,131.25,131.22,13.79320165]
[1744851008806,90.41916577,131.25,131.21,13.79320165]
[1744851011410,82.8,131.25,131.21,21.4145335]
[1744851011621,82.8,131.25,131.22,13.79320165]
[1744851011802,82.8,131.25,131.23,13.79320165]
[1744851012002,82.863,131.27,131.24,13.79320165]
[1744851012310,82.863,131.27,131.25,13.79320165]
[1744851012508,82.863,131.27,131.24,13.79320165]
[1744851013196,90.48106731,131.27,131.24,13.79320165]
[1744851013389,90.48106731,131.27,131.23,13.79320165]
[1744851013593,104.27426896,131.27,131.22,13.79320165]
[1744851013793,82.8,131.26,131.22,13.79320165]
[1744851015400,90.41903563,131.26,131.22,13.79320165]
[1744851016919,90.4195158,131.25,131.21,13.79320165]
[1744851017110,104.21271745,131.25,131.2,13.79320165]
[1744851017611,90.4195158,131.25,131.21,13.79320165]
[1744851018728,13.79320165,131.22,131.15,0.03]
[1744851018932,13.79320165,131.2,131.15,13.82320165]
[1744851020532,7.6225322,131.19,131.15,13.82320165]
[1744851021709,82.8,131.21,131.18,13.79320165]
[1744851021924,90.4198818,131.24,131.2,13.79320165]
[1744851022219,82.8,131.24,131.22,13.79320165]
[1744851025040,90.41969103,131.24,131.21,13.79320165]
[1744851025219,104.21289268,131.24,131.19,6.5779]
[1744851025408,90.41969103,131.24,131.2,13.79320165]
[1744851026031,104.21289268,131.24,131.2,13.79320165]
[1744851026235,82.8,131.23,131.2,13.79320165]
[1744851026439,82.8,131.23,131.19,13.79320165]
[1744851026812,82.8,131.23,131.17,9.14431228]
[1744851026813,82.8,131.23,131.2,13.79320165]
[1744851027009,82.8,131.23,131.21,13.79320165]
[1744851027934,82.8,131.23,131.22,13.79320165]
[1744851030327,0.063,131.27,131.23,1.514]
[1744851030531,0.063,131.27,131.26,13.79320165]
[1744851033248,0.063,131.27,131.25,13.79320165]
[1744851033428,13.85620165,131.27,131.22,13.79320165]
[1744851033617,82.8,131.26,131.22,13.79320165]
[1744851033813,82.8,131.26,131.23,13.79320165]
[1744851034620,82.8,131.26,131.24,13.79320165]
[1744851034819,82.8,131.26,131.25,13.79320165]
[1744851035019,0.063,131.27,131.24,13.79320165]
[1744851036540,0.063,131.27,131.21,33.62119897]
[1744851036738,82.8,131.26,131.24,13.79320165]
[1744851038351,82.8,131.26,131.25,13.79320165]
[1744851041160,0.063,131.27,131.24,13.79320165]
[1744851044985,0.063,131.27,131.23,13.79320165]
[1744851045664,13.85620165,131.27,131.22,13.79320165]
[1744851046172,13.79320165,131.25,131.21,13.79320165]
[1744851046377,82.8,131.24,131.19,1.5094]
[1744851046712,7.62020879,131.23,131.2,13.79320165]
[1744851047896,90.41983334,131.24,131.2,13.79320165]
[1744851048282,82.8,131.24,131.22,13.79320165]
[1744851048791,82.8,131.24,131.21,21.41452283]
[1744851049679,82.8,131.24,131.21,13.79320165]
[1744851050691,90.41975325,131.24,131.19,1.5094]
[1744851050904,104.2129549,131.24,131.18,13.79320165]
[1744851051105,13.79320165,131.22,131.15,1.6469]
[1744851051293,82.8,131.21,131.18,13.79320165]
[1744851051601,82.8,131.21,131.15,9.27136055]
[1744851051602,82.8,131.23,131.19,13.79320165]
[1744851052498,13.79320165,131.21,131.16,13.79320165]
[1744851052796,7.62195121,131.2,131.16,13.79320165]
[1744851053096,7.62195121,131.2,131.17,13.79320165]
[1744851055691,90.42195121,131.2,131.17,13.79320165]
[1744851055890,90.42195121,131.2,131.16,13.79320165]
[1744851057504,82.8,131.2,131.18,13.79320165]
[1744851057681,82.8,131.2,131.19,13.79320165]
[1744851058411,82.8,131.25,131.19,13.79320165]
[1744851058581,82.8,131.25,131.22,13.79320165]
[1744851059083,90.41914458,131.25,131.22,13.79320165]
[1744851059290,82.8,131.25,131.22,13.79320165]
[1744851059683,90.41909013,131.25,131.22,13.79320165]
[1744851059894,82.8,131.25,131.22,13.79320165]
[1744851060699,90.41930836,131.25,131.21,13.79320165]
[1744851060906,104.21251001,131.25,131.2,13.79320165]
[1744851061207,13.79320165,131.23,131.17,7.62334771]
[1744851061418,13.79320165,131.21,131.16,13.79320165]
[1744851061745,82.8,131.22,131.18,13.79320165]
[1744851061878,82.8,131.22,131.19,13.79320165]
[1744851062085,82.8,131.22,131.18,13.79320165]
[1744851062390,96.59320165,131.22,131.17,13.79320165]
[1744851063188,96.59320165,131.22,131.17,21.41648705]
[1744851063393,82.8,131.22,131.18,13.79320165]
[1744851063903,90.42094776,131.22,131.18,13.79320165]
[1744851064084,104.21414941,131.22,131.17,21.41648705]
[1744851064484,82.8,131.21,131.17,21.41648705]
[1744851064780,82.8,131.21,131.17,13.79320165]
[1744851064976,82.8,131.21,131.17,21.41684812]
[1744851065729,82.8,131.21,131.17,7.62364647]
[1744851065890,82.8,131.23,131.2,13.79320165]
[1744851066219,96.59320165,131.22,131.17,13.79320165]
[1744851066402,82.8,131.21,131.17,13.79320165]
[1744851066602,82.8,131.21,131.18,13.79320165]
[1744851067914,82.8,131.21,131.18,21.41600271]
[1744851068318,82.8,131.25,131.2,13.79320165]
[1744851068498,82.8,131.24,131.23,13.79320165]
[1744851068819,82.8,131.24,131.22,13.79320165]
[1744851069826,82.8,131.24,131.22,21.41398509]
[1744851070499,82.8,131.24,131.19,7.6225322]
[1744851070705,82.8,131.24,131.21,13.79320165]
[1744851070906,13.79320165,131.23,131.17,7.62369444]
[1744851071106,13.79320165,131.23,131.19,13.79320165]
[1744851071314,104.21301058,131.24,131.19,13.79320165]
[1744851072423,13.79320165,131.23,131.18,13.79320165]
[1744851072600,82.8,131.22,131.18,13.79320165]
[1744851072915,82.8,131.22,131.19,13.79320165]
[1744851073122,82.8,131.22,131.16,13.79320165]
[1744851073419,82.8,131.21,131.16,7.62378438]
[1744851073621,82.8,131.21,131.18,13.79320165]
[1744851073820,82.8,131.21,131.19,13.79320165]
[1744851074201,82.8,131.21,131.2,13.79320165]
[1744851074516,82.8,131.24,131.2,13.79320165]
[1744851074720,104.21288815,131.24,131.19,13.79320165]
[1744851075305,90.4196865,131.24,131.2,13.79320165]
[1744851075620,82.8,131.24,131.21,13.79320165]
[1744851075823,82.8,131.24,131.22,13.79320165]
[1744851076000,82.8,131.24,131.21,13.79320165]
[1744851076926,104.21292505,131.24,131.16,32.85389088]
[1744851077101,82.8,131.23,131.21,13.79320165]
[1744851078804,82.8,131.23,131.22,13.79320165]
[1744851079220,82.8,131.23,131.21,15.34810165]
[1744851079404,82.8,131.23,131.22,13.79320165]
[1744851081333,82.8,131.23,131.22,21.41399116]
[1744851082129,82.8,131.26,131.22,21.41399116]
[1744851082332,82.8,131.26,131.22,7.62078951]
[1744851082633,90.41852329,131.26,131.22,13.79320165]
[1744851083313,82.8,131.26,131.22,13.79320165]
[1744851083733,90.41854087,131.26,131.22,13.79320165]
[1744851084130,104.21174252,131.26,131.21,15.34810165]
[1744851084435,104.21174252,131.26,131.21,22.96946751]
[1744851086017,82.8,131.26,131.22,13.79320165]
[1744851086335,82.8,131.26,131.23,13.79320165]
[1744851089235,0.063,131.27,131.26,29.40016881]
[1744851093844,0.063,131.29,131.26,62.23953837]
[1744851094045,0.063,131.29,131.28,27.5864033]
[1744851094850,0.063,131.29,131.28,35.20370982]
[1744851095426,0.063,131.31,131.3,39.79320165]
[1744851095619,1e-08,131.32,131.3,47.54060165]
[1744851095817,1e-08,131.33,131.32,18.64964886]
[1744851096020,1e-08,131.33,131.32,72.66253687]
[1744851097052,1e-08,131.33,131.32,80.27752316]
[1744851097555,1e-08,131.33,131.32,47.40818794]
[1744851101027,1e-08,131.33,131.32,21.40818794]
[1744851101227,1e-08,131.33,131.32,47.40818794]
[1744851104530,1e-08,131.33,131.32,21.40818794]
[1744851105735,1e-08,131.33,131.32,47.40818794]
[1744851109561,1e-08,131.33,131.32,66.48432151]
[1744851109765,0.063,131.35,131.34,26.0]
[1744851109968,0.063,131.37,131.35,6.3195]
[1744851110168,0.063,131.39,131.38,26.0]
[1744851110454,0.063,131.39,131.38,39.79320165]
[1744851111655,0.063,131.39,131.38,47.40471025]
[1744851114359,0.063,131.4,131.38,80.27404547]
[1744851114548,0.063,131.41,131.39,63.76955216]
[1744851114753,0.063,131.41,131.4,53.5864033]
[1744851114953,0.063,131.42,131.4,53.5864033]
[1744851115260,0.063,131.42,131.41,39.36193522]
[1744851116553,0.063,131.42,131.41,46.97170616]
[1744851120864,0.063,131.42,131.41,27.89557259]
[1744851121344,0.063,131.42,131.41,13.79320165]
[1744851122969,0.063,131.42,131.41,21.40297259]
[1744851123179,0.063,131.42,131.41,40.33694459]
[1744851123472,0.063,131.42,131.41,40.47910616]
[1744851124256,0.063,131.42,131.41,46.50583593]
[1744851125949,0.063,131.42,131.41,16.40467151]
[1744851129876,0.063,131.42,131.41,7.60977094]
[1744851130073,0.063,131.42,131.36,19.03139995]
[1744851130256,0.063,131.42,131.38,8.79490057]
[1744851130568,91.65790057,131.42,131.36,7.61243782]
[1744851130954,8.79490057,131.41,131.37,8.79490057]
[1744851131276,8.79490057,131.41,131.37,13.76110951]
[1744851131277,13.76110951,131.41,131.37,13.76110951]
[1744851131461,13.76110951,131.4,131.35,15.98]
[1744851131662,96.56110951,131.41,131.37,13.76110951]
[1744851131863,82.8,131.41,131.37,13.76110951]
[1744851132774,82.8,131.41,131.39,13.76110951]
[1744851132974,82.8,131.41,131.38,13.76110951]
[1744851133172,96.56110951,131.41,131.36,21.37360152]
[1744851133365,96.56110951,131.41,131.36,13.76110951]
[1744851133366,82.8,131.4,131.36,13.76110951]
[1744851133557,82.8,131.39,131.35,13.76110951]
[1744851133961,82.8,131.41,131.37,13.76110951]
[1744851134155,82.8,131.41,131.39,13.76110951]
[1744851134362,0.063,131.42,131.4,13.76110951]
[1744851134667,0.063,131.42,131.39,13.76110951]
[1744851134861,82.8,131.41,131.35,7.6130947]
[1744851135167,96.56110951,131.41,131.37,13.76110951]
[1744851135367,7.67221254,131.42,131.35,7.6130947]
[1744851135368,96.56110951,131.4,131.35,13.76110951]
[1744851135556,13.76110951,131.39,131.34,21.37470405]
[1744851136066,96.56110951,131.4,131.35,13.76110951]
[1744851136978,96.56110951,131.4,131.34,7.61359454]
[1744851137178,13.76110951,131.37,131.32,13.76110951]
[1744851137364,96.56110951,131.37,131.32,13.76110951]
[1744851138183,96.56110951,131.37,131.32,21.37589952]
[1744851139077,82.8,131.37,131.33,13.76110951]
[1744851139982,104.17342413,131.37,131.33,13.76110951]
[1744851140279,104.17432092,131.36,131.31,13.76110951]
[1744851140779,13.76110951,131.33,131.29,7.61665172]
[1744851140983,13.76110951,131.34,131.29,21.37776123]
[1744851141485,82.8,131.33,131.3,13.76110951]
[1744851143781,82.8,131.33,131.3,21.37710645]
[1744851143993,82.8,131.33,131.32,13.76110951]
[1744851144166,82.8,131.35,131.32,13.76110951]
[1744851144569,82.8,131.35,131.31,13.76110951]
[1744851144774,90.41341065,131.35,131.31,13.76110951]
[1744851144974,104.17452016,131.35,131.3,21.37710645]
[1744851145782,82.8,131.35,131.31,13.76110951]
[1744851145987,82.8,131.37,131.34,13.76110951]
[1744851146189,82.8,131.39,131.36,13.76110951]
[1744851146368,82.8,131.39,131.37,13.76110951]
[1744851146688,82.8,131.39,131.35,13.76110951]
[1744851146870,104.17204611,131.39,131.34,13.76110951]
[1744851147066,90.41166662,131.38,131.34,13.76110951]
[1744851147765,90.41166662,131.38,131.33,13.76110951]
[1744851147766,82.8,131.37,131.33,13.76110951]
[1744851148487,82.8,131.37,131.34,13.76110951]
[1744851150291,82.8,131.37,131.36,13.76110951]
[1744851150876,82.8,131.37,131.34,13.76110951]
[1744851151882,82.8,131.37,131.35,13.76110951]
[1744851152483,82.8,131.36,131.35,13.76110951]
[1744851154310,82.8,131.36,131.35,21.37435655]
[1744851155706,82.8,131.39,131.35,21.37435655]
[1744851155882,82.8,131.39,131.36,13.76110951]
[1744851156795,104.17203989,131.39,131.34,13.76110951]
[1744851157007,104.17203989,131.39,131.33,21.37497592]
[1744851157908,13.76110951,131.37,131.32,37.37601531]
[1744851158079,82.8,131.36,131.32,21.37601531]
[1744851159110,90.41272524,131.36,131.32,21.37601531]
[1744851159321,82.8,131.35,131.31,21.37641443]
[1744851161913,82.8,131.35,131.32,13.76110951]
[1744851162108,82.8,131.35,131.31,21.37641443]
[1744851163118,82.8,131.35,131.32,13.76110951]
[1744851163289,82.8,131.35,131.33,13.76110951]
[1744851163610,82.8,131.35,131.32,13.76110951]
[1744851164210,82.8,131.35,131.32,21.37551702]
[1744851164619,82.8,131.4,131.34,47.42950951]
[1744851164808,82.8,131.4,131.38,13.76110951]
[1744851165002,90.47226786,131.42,131.38,13.76110951]
[1744851165721,269.64940951,131.46,131.34,47.42950951]
[1744851165722,0.03,131.51,131.41,141.73186788]
[1744851166010,0.03,131.51,131.46,53.52221902]
[1744851166239,0.03,131.51,131.5,13.76110951]
[1744851166594,0.03,131.51,131.47,7.60629801]
[1744851166843,0.03,131.51,131.47,21.36740752]
[1744851168009,0.03,131.51,131.5,13.76110951]
[1744851168209,0.03,131.51,131.5,21.36567224]
[1744851170217,0.03,131.51,131.49,21.36604473]
[1744851171023,82.83,131.51,131.49,7.60493522]
[1744851171503,82.83,131.51,131.49,13.76110951]
[1744851173521,82.83,131.51,131.5,13.76110951]
[1744851175712,82.83,131.51,131.5,21.36567224]
[1744851176023,0.03,131.51,131.5,21.36567224]
[1744851177229,0.03,131.51,131.5,7.60456273]
[1744851177407,0.03,131.51,131.5,21.36567224]
[1744851177925,0.03,131.51,131.5,7.60456273]
[1744851178102,0.03,131.51,131.49,13.76110951]
[1744851178918,0.03,131.51,131.48,21.3666135]
[1744851181410,0.03,131.51,131.5,13.76110951]
[1744851181619,82.83,131.51,131.5,13.76110951]
[1744851182126,82.83,131.51,131.49,13.76110951]
[1744851183912,82.83,131.51,131.47,7.60624769]
[1744851184119,82.8,131.5,131.47,13.76110951]
[1744851184815,82.8,131.5,131.45,33.60697363]
[1744851184816,82.8,131.5,131.48,13.76110951]
[1744851185019,82.8,131.5,131.45,33.60697363]
[1744851185020,82.8,131.5,131.49,13.76110951]
[1744851185529,82.8,131.5,131.49,21.36625058]
[1744851186620,0.03,131.51,131.49,21.36625058]
[1744851186813,0.03,131.51,131.5,13.76110951]
[1744851187610,0.03,131.52,131.51,35.1262035]
[1744851188832,0.03,131.52,131.51,21.36509399]
[1744851189236,0.03,131.52,131.51,61.1262035]
[1744851189623,0.03,131.52,131.51,47.36509399]
[1744851190637,0.03,131.55,131.52,18.64964886]
[1744851190838,0.03,131.57,131.56,19.07613357]
[1744851190839,1e-08,131.57,131.56,19.07613357]
[1744851191057,0.03,131.65,131.56,46.59835259]
[1744851191212,0.03,131.65,131.62,13.76110951]
[1744851192548,0.03,131.65,131.61,13.76110951]
[1744851192714,0.03,131.65,131.56,19.07613357]
[1744851192715,18.64964886,131.6,131.51,7.60398448]
[1744851193030,13.76110951,131.58,131.53,13.76110951]
[1744851193230,13.76110951,131.59,131.54,13.76110951]
[1744851193820,13.76110951,131.56,131.51,13.76110951]
[1744851195133,21.96995026,131.56,131.51,21.96995026]
[1744851195836,29.57144129,131.56,131.51,21.96995026]
[1744851197143,29.57144129,131.56,131.52,21.96995026]
[1744851199141,7.60149103,131.56,131.52,21.96995026]
[1744851199440,82.8,131.55,131.52,21.96995026]
[1744851199644,104.76995026,131.55,131.5,21.96995026]
[1744851201044,7.60225026,131.54,131.5,21.96995026]
[1744851201258,104.76995026,131.53,131.47,1.5596]
[1744851201429,82.8,131.52,131.48,21.96995026]
[1744851201624,82.3,131.52,131.48,21.96995026]
[1744851202127,82.3,131.52,131.51,21.96995026]
[1744851203745,89.90340632,131.52,131.47,1.5596]
[1744851203950,89.90340632,131.52,131.5,21.96995026]
[1744851205248,89.90340632,131.52,131.49,21.96995026]
[1744851205647,89.90340632,131.52,131.5,21.96995026]
[1744851206228,89.90340632,131.52,131.49,21.96995026]
[1744851206448,89.90340632,131.52,131.5,21.96995026]
[1744851207352,82.3,131.52,131.5,21.96995026]
[1744851212158,82.3,131.55,131.51,21.96995026]
[1744851212465,82.3,131.55,131.54,21.96995026]
[1744851213143,82.3,131.58,131.54,21.96995026]
[1744851213451,82.3,131.58,131.55,21.96995026]
[1744851214251,89.90011118,131.58,131.55,21.96995026]
[1744851215243,82.3,131.58,131.56,21.96995026]
[1744851217157,82.3,131.58,131.56,13.71989426]
[1744851217451,89.89829293,131.61,131.57,13.71989426]
[1744851218554,0.03,131.63,131.59,13.71989426]
[1744851218745,0.03,131.63,131.61,13.71989426]
[1744851221167,13.74989426,131.63,131.58,6.4383]
[1744851221343,96.01989426,131.62,131.58,20.15819426]
[1744851221540,82.3,131.62,131.59,13.71989426]
[1744851222668,82.3,131.62,131.6,13.71989426]
[1744851223568,82.3,131.62,131.59,13.71989426]
[1744851223871,96.01989426,131.61,131.56,13.71989426]
[1744851224174,13.71989426,131.6,131.56,13.71989426]
[1744851224348,96.01989426,131.59,131.55,13.71989426]
[1744851224938,82.3,131.59,131.55,13.71989426]
[1744851225138,82.3,131.59,131.56,13.71989426]
[1744851225570,82.3,131.59,131.57,13.71989426]
[1744851228669,82.3,131.59,131.58,13.71989426]
[1744851229078,82.3,131.62,131.58,15.26219426]
[1744851229251,82.3,131.62,131.6,13.71989426]
[1744851230054,13.71989426,131.61,131.56,16.12]
[1744851230273,82.3,131.6,131.57,13.71989426]
[1744851230873,82.3,131.6,131.59,13.71989426]
[1744851231076,0.03,131.63,131.59,13.71989426]
[1744851231256,7.62709001,131.63,131.6,13.71989426]
[1744851231770,21.34698427,131.63,131.58,13.71989426]
[1744851232779,13.71989426,131.62,131.57,13.71989426]
[1744851234470,89.89832551,131.61,131.57,13.71989426]
[1744851234766,82.3,131.61,131.58,13.71989426]
[1744851235068,82.3,131.61,131.59,13.71989426]
[1744851235451,82.3,131.61,131.6,13.71989426]
[1744851237270,82.3,131.61,131.59,7.59898581]
[1744851237471,82.3,131.61,131.6,13.71989426]
[1744851239274,0.03,131.63,131.6,13.71989426]
[1744851239464,7.62716436,131.63,131.6,13.71989426]
[1744851239862,0.03,131.63,131.6,13.71989426]
[1744851241767,0.03,131.63,131.59,13.71989426]
[1744851243079,0.03,131.63,131.6,13.71989426]
[1744851243272,82.33,131.63,131.6,13.71989426]
[1744851244680,82.33,131.63,131.59,13.71989426]
[1744851244976,96.04989426,131.63,131.58,13.71989426]
[1744851245166,103.6473141,131.63,131.58,13.71989426]
[1744851245874,13.71989426,131.61,131.56,37.44084097]
[1744851246379,96.01989426,131.62,131.57,13.71989426]
[1744851246967,103.61796302,131.62,131.57,13.71989426]
[1744851248182,103.61796302,131.62,131.56,23.72094671]
[1744851248378,103.61796302,131.62,131.57,13.71989426]
[1744851249174,82.3,131.61,131.57,13.71989426]
[1744851249482,82.3,131.61,131.57,21.3203068]
[1744851250161,82.3,131.61,131.58,13.71989426]
[1744851250864,82.3,131.61,131.6,13.71989426]
[1744851251178,0.03,131.63,131.6,13.71989426]
[1744851252082,7.627082,131.63,131.59,13.71989426]
[1744851252584,0.03,131.63,131.59,13.71989426]
[1744851253078,0.03,131.63,131.59,21.31873097]
[1744851253286,0.03,131.63,131.6,13.71989426]
[1744851253471,0.03,131.63,131.59,13.71989426]
[1744851254686,0.03,131.63,131.6,13.71989426]
[1744851254983,82.33,131.63,131.6,13.71989426]
[1744851255279,89.92705998,131.63,131.59,13.71989426]
[1744851255484,89.92705998,131.63,131.57,7.60051683]
[1744851255684,82.3,131.62,131.59,13.71989426]
[1744851256283,96.01989426,131.62,131.56,23.72100887]
[1744851256482,96.01989426,131.62,131.57,13.71989426]
[1744851257074,96.01989426,131.62,131.57,21.32039303]
[1744851257392,82.3,131.62,131.58,13.71989426]
[1744851258488,89.89780093,131.62,131.58,13.71989426]
[1744851258990,89.89780093,131.62,131.59,13.71989426]
[1744851259389,82.3,131.62,131.59,13.71989426]
[1744851263284,82.3,131.62,131.6,13.71989426]
[1744851263490,82.3,131.62,131.59,13.71989426]
[1744851264691,82.3,131.62,131.6,13.71989426]
[1744851265196,82.3,131.62,131.6,8.77556977]
[1744851265693,82.3,131.62,131.59,8.77556977]
[1744851267089,82.3,131.62,131.6,8.77556977]
[1744851271283,82.3,131.62,131.59,8.77556977]
[1744851271482,89.89775045,131.62,131.58,8.77556977]
[1744851272285,89.89775045,131.62,131.59,8.77556977]
[1744851273398,82.3,131.62,131.59,8.77556977]
[1744851273996,82.3,131.62,131.46,12.01301615]
[1744851273997,2.5283,131.57,131.46,12.01301615]
[1744851274197,69.87784885,131.47,131.41,0.063]
[1744851274382,34.77556977,131.45,131.44,0.58762597]
[1744851274704,7.6091919,131.42,131.4,71.70009693]
[1744851275089,15.96,131.41,131.4,71.70009693]
[1744851275284,47.36744483,131.43,131.4,71.70009693]
[1744851275597,15.96,131.41,131.4,71.70009693]
[1744851276389,33.53017425,131.41,131.38,0.063]
[1744851276592,17.57017425,131.41,131.38,13.82172373]
[1744851276792,17.57017425,131.41,131.39,13.75872373]
[1744851277374,5.64039023,131.41,131.39,13.75872373]
[1744851277605,7.60868099,131.43,131.39,13.75872373]
[1744851277790,21.36740472,131.43,131.38,39.82172373]
[1744851278179,21.36740472,131.43,131.38,13.82172373]
[1744851278706,13.75872373,131.42,131.38,0.063]
[1744851278888,21.36740472,131.43,131.38,13.82172373]
[1744851279074,96.05872373,131.42,131.38,0.063]
[1744851279277,82.3,131.41,131.38,0.063]
[1744851279497,13.75872373,131.39,131.38,0.063]
[1744851280006,96.05872373,131.39,131.38,0.063]
[1744851280308,89.91092929,131.39,131.38,0.063]
[1744851281192,15.98,131.41,131.38,0.063]
[1744851281193,7.61021412,131.41,131.38,0.063]
[1744851281379,21.36893785,131.41,131.38,0.063]
[1744851281900,13.75872373,131.4,131.36,0.063]
[1744851282081,13.75872373,131.39,131.36,0.063]
[1744851282283,89.91204761,131.38,131.36,0.063]
[1744851282597,103.67077134,131.38,131.36,0.063]
[1744851284492,82.3,131.37,131.36,0.063]
[1744851284894,32.40837259,131.37,131.36,0.063]
[1744851285102,21.37077134,131.38,131.36,0.063]
[1744851285500,13.75872373,131.37,131.36,0.063]
[1744851285682,37.03242278,131.37,131.36,0.063]
[1744851286001,23.27369905,131.37,131.32,13.75872373]
[1744851286307,82.8,131.36,131.32,13.75872373]
[1744851286682,96.55872373,131.35,131.31,13.75872373]
[1744851286887,96.55872373,131.35,131.3,13.75872373]
[1744851288011,104.17216402,131.35,131.3,13.75872373]
[1744851288408,104.17216402,131.35,131.31,13.75872373]
[1744851289506,82.8,131.35,131.33,13.75872373]
[1744851291205,82.8,131.35,131.34,13.75872373]
[1744851292810,82.8,131.35,131.33,13.75872373]
[1744851295505,82.8,131.35,131.32,13.75872373]
[1744851296397,82.8,131.35,131.33,13.75872373]
[1744851298308,82.8,131.37,131.34,13.75872373]
[1744851298489,90.41227487,131.37,131.33,13.75872373]
[1744851298811,104.1709986,131.37,131.32,13.75872373]
[1744851299199,13.75872373,131.35,131.31,13.75872373]
[1744851299907,82.8,131.34,131.31,13.75872373]
[1744851302117,96.55872373,131.34,131.29,13.75872373]
[1744851302605,13.75872373,131.33,131.28,53.863177]
[1744851302810,96.55872373,131.32,131.26,33.6812571]
[1744851303114,96.55872373,131.32,131.27,13.75872373]
[1744851304112,104.17401715,131.32,131.27,13.75872373]
[1744851304314,104.17401715,131.32,131.27,21.37649022]
[1744851305616,104.17401715,131.32,131.27,13.75872373]
[1744851305911,104.17401715,131.32,131.27,21.37648115]
[1744851306502,104.17401715,131.32,131.28,13.75872373]
[1744851306811,82.8,131.32,131.29,13.75872373]
[1744851307210,82.8,131.32,131.28,13.75872373]
[1744851307807,82.8,131.31,131.28,21.3759301]
[1744851308918,82.8,131.31,131.29,13.75872373]
[1744851312916,82.8,131.31,131.3,13.75872373]
[1744851313118,99.0,131.35,131.3,8.81369393]